fUSD/lending_fUSD_20260201
["ID","MTS","AMOUNT","RATE_DAILY","PERIOD"]
[404193098,1769928631888,-151.0,0.00015888,2]
[404193099,1769928631898,-300.0,0.00015985,2]
[404193100,1769928631908,-500.0,0.00015986,2]
[404193102,1769928632288,-215.44543055,0.00015986,2]
[404193103,1769928632305,-105.45619299,0.00015986,2]
[404193104,1769928632316,-93.74581146,0.00015986,2]
[404193105,1769928632325,-353.13418854,0.00015986,2]
[404193106,1769928632337,-146.86581146,0.00015986,2]
[404193107,1769928632347,-382.80880801,0.00015986,2]
[404193108,1769928632363,-117.19119199,0.00015986,2]
[404193109,1769928632372,-369.67983801,0.00015986,2]
[404193112,1769928637682,-130.32016199,0.00015986,2]
[404193113,1769928637693,-500.0,0.00015986,2]
[404193114,1769928637702,-16.06592245,0.00015986,2]
[404193115,1769928637714,-483.93407755,0.00015986,2]
[404193116,1769928637723,-500.0,0.00015986,2]
[404193117,1769928637733,-282.07709449,0.00015986,2]
[404193118,1769928637744,-168.71789294,0.00015986,2]
[404193119,1769928637753,-500.0,0.00015986,2]
[404193120,1769928637763,-227.68393205,0.00015986,2]
[404193121,1769928637774,-272.31606795,0.00015986,2]
[404193122,1769928637785,-362.28294846,0.00015986,2]
[404193123,1769928637869,-137.71705154,0.00015986,2]
[404193124,1769928637879,-486.51581717,0.00015986,2]
[404193125,1769928637890,-500.0,0.00015986,2]
[404193126,1769928637900,-152.83823475,0.00015986,2]
[404193127,1769928637913,-347.16176525,0.00015986,2]
[404193128,1769928637924,-500.0,0.00015986,2]
[404193129,1769928637933,-500.0,0.00015986,2]
[404193130,1769928637944,-500.0,0.00015986,2]
[404193131,1769928637953,-320.13598804,0.00015986,2]
[404193138,1769928643564,-2599.9549,0.00015887,2]
[404193139,1769928643574,-179.86401196,0.00015986,2]
[404193140,1769928643585,-500.0,0.00015986,2]
[404193141,1769928643595,-500.0,0.00015986,2]
[404193142,1769928643604,-500.0,0.00015986,2]
[404193143,1769928643614,-500.0,0.00015986,2]
[404193144,1769928643623,-500.0,0.00015986,2]
[404193145,1769928643634,-500.0,0.00015986,2]
[404193146,1769928643644,-500.0,0.00015986,2]
[404193147,1769928643655,-500.0,0.00015986,2]
[404193148,1769928643665,-500.0,0.00015986,2]
[404193149,1769928643676,-500.0,0.00015986,2]
[404193150,1769928643686,-500.0,0.00015986,2]
[404193151,1769928643696,-500.0,0.00015986,2]
[404193152,1769928643705,-500.0,0.00015986,2]
[404193153,1769928643722,-500.0,0.00015986,2]
[404193154,1769928643737,-500.0,0.00015986,2]
[404193155,1769928643748,-500.0,0.00015986,2]
[404193156,1769928643758,-500.0,0.00015986,2]
[404193157,1769928643768,-500.0,0.00015986,2]
[404193158,1769928643779,-500.0,0.00015986,2]
[404193159,1769928643789,-500.0,0.00015986,2]
[404193160,1769928643799,-500.0,0.00015986,2]
[404193161,1769928643809,-500.0,0.00015986,2]
[404193162,1769928643819,-500.0,0.00015986,2]
[404193163,1769928643828,-500.0,0.00015986,2]
[404193164,1769928643837,-500.0,0.00015986,2]
[404193165,1769928643848,-158774.42937544,0.00015987,2]
[404193180,1769928645793,-151.0,0.00015923,2]
[404193182,1769928645803,-2699.72638314,0.00015987,2]
[404193184,1769928645816,-1619.73966272,0.00015987,2]
[404193189,1769928646026,-8417.9,0.00015987,2]
[404193198,1769928738041,306.83720489,0.00043551,120]
[404193208,1769929378811,-250.0,0.00015,2]
[404193209,1769929403108,500.0,0.00015105,2]
[404193210,1769929406843,894.86240696,0.00043551,120]
[404193212,1769929566422,166.66,0.00015173,2]
[404193213,1769929566622,166.66,0.00015492,2]
[404193219,1769929831775,-151.0,0.00015607,2]
[404193221,1769929831785,-156.587,0.00015607,2]
[404193222,1769929831794,-162.380719,0.00015607,2]
[404193223,1769929831804,-144.00319822,0.00015607,2]
[404193224,1769929831815,-13.57144569,0.00015607,2]
[404193225,1769929831824,-529.26414854,0.00015647,2]
[404193226,1769929831833,-418.61200818,0.00015687,2]
[404193228,1769929831842,-170.48230707,0.00015687,2]
[404193230,1769929831854,-1023.31953828,0.00015687,2]
[404193232,1769929831865,-1091.0169668,0.00015687,2]
[404193233,1769929831875,-700.0,0.000157,5]
[404193234,1769929831884,-167.40720475,0.00015782,2]
[404193235,1769929831895,-1032.59279525,0.00015782,2]
[404193236,1769929831904,-300.0,0.00015783,2]
[404193237,1769929831914,-300.0,0.00015783,2]
[404193238,1769929831923,-300.0,0.00015783,2]
[404193239,1769929831932,-300.0,0.00015783,2]
[404193240,1769929831941,-489.44140311,0.00015784,2]
[404193241,1769929831950,-150.81180139,0.00015784,2]
[404193242,1769929831961,-500.0,0.00015784,2]
[404193243,1769929831971,-131.94095976,0.00015784,2]
[404193244,1769929831982,-84.81403884,0.00015784,2]
[404193245,1769929831991,-500.0,0.00015784,2]
[404193246,1769929832002,-500.0,0.00015784,2]
[404193247,1769929832012,-500.0,0.00015784,2]
[404193248,1769929832022,-500.0,0.00015784,2]
[404193249,1769929832031,-463.92461265,0.00015784,2]
[404193250,1769929832043,-36.07538735,0.00015784,2]
[404193251,1769929832052,-500.0,0.00015784,2]
[404193252,1769929832062,-500.0,0.00015784,2]
[404193253,1769929832071,-480.40899344,0.00015784,2]
[404193254,1769929832082,-19.59100656,0.00015784,2]
[404193255,1769929832092,-367.5253934,0.00015784,2]
[404193256,1769929832103,-132.4746066,0.00015784,2]
[404193257,1769929832112,-500.0,0.00015784,2]
[404193259,1769929832121,-500.0,0.00015784,2]
[404193261,1769929832130,-500.0,0.00015784,2]
[404193263,1769929832140,-500.0,0.00015784,2]
[404193265,1769929832149,-500.0,0.00015784,2]
[404193267,1769929832158,-266.4903541,0.00015784,2]
[404193270,1769929832175,-233.5096459,0.00015784,2]
[404193272,1769929832184,-63.53821317,0.00015784,2]
[404193274,1769929832196,-397.84647269,0.00015784,2]
[404193277,1769929832208,-38.61531414,0.00015784,2]
[404193279,1769929832217,-500.0,0.00015784,2]
[404193280,1769929832226,-500.0,0.00015784,2]
[404193282,1769929832235,-500.0,0.00015784,2]
[404193284,1769929832246,-500.0,0.00015784,2]
[404193286,1769929832257,-500.0,0.00015784,2]
[404193289,1769929832267,-500.0,0.00015784,2]
[404193290,1769929832277,-215.89606649,0.00015784,2]
[404193293,1769929832289,-284.10393351,0.00015784,2]
[404193295,1769929832298,-500.0,0.00015784,2]
[404193297,1769929832307,-500.0,0.00015784,2]
[404193299,1769929832316,-396.56342262,0.00015784,2]
[404193301,1769929832327,-103.43657738,0.00015784,2]
[404193303,1769929832336,-500.0,0.00015784,2]
[404193305,1769929832346,-362.47368603,0.00015784,2]
[404193307,1769929832367,-500.0,0.00015784,2]
[404193309,1769929832386,-500.0,0.00015784,2]
[404193311,1769929832397,-500.0,0.00015784,2]
[404193313,1769929832407,-500.0,0.00015784,2]
[404193315,1769929832416,-500.0,0.00015784,2]
[404193317,1769929832426,-500.0,0.00015784,2]
[404193319,1769929832435,-473.65536052,0.00015784,2]
[404193322,1769929832447,-26.34463948,0.00015784,2]
[404193324,1769929832456,-500.0,0.00015784,2]
[404193326,1769929832465,-390.09536052,0.00015784,2]
[404193328,1769929832476,-109.90463948,0.00015784,2]
[404193330,1769929832485,-500.0,0.00015784,2]
[404193332,1769929832494,-500.0,0.00015784,2]
[404193334,1769929832508,-500.0,0.00015784,2]
[404193336,1769929832517,-500.0,0.00015784,2]
[404193338,1769929832526,-308.79941407,0.00015784,2]
[404193340,1769929832538,-191.20058593,0.00015784,2]
[404193342,1769929832547,-500.0,0.00015784,2]
[404193344,1769929832557,-306.93578953,0.00015784,2]
[404193346,1769929832567,-193.06421047,0.00015784,2]
[404193348,1769929832576,-500.0,0.00015784,2]
[404193350,1769929832585,-500.0,0.00015784,2]
[404193352,1769929832594,-500.0,0.00015784,2]
[404193354,1769929832603,-458.64959133,0.00015784,2]
[404193518,1769929837864,-27.59777728,0.00015784,2]
[404193519,1769929837874,-500.0,0.00015784,2]
[404193520,1769929837883,-500.0,0.00015784,2]
[404193521,1769929837893,-500.0,0.00015784,2]
[404193522,1769929837903,-500.0,0.00015784,2]
[404193523,1769929837911,-500.0,0.00015784,2]
[404193524,1769929837920,-500.0,0.00015784,2]
[404193525,1769929837929,-500.0,0.00015784,2]
[404193526,1769929837938,-500.0,0.00015784,2]
[404193527,1769929837947,-500.0,0.00015784,2]
[404193528,1769929837956,-500.0,0.00015784,2]
[404193529,1769929837969,-500.0,0.00015784,2]
[404193530,1769929837978,-500.0,0.00015784,2]
[404193531,1769929837988,-499.99999999,0.00015784,2]
[404193532,1769929837997,-500.0,0.00015784,2]
[404193533,1769929838009,-504.09933742,0.00015784,2]
[404193534,1769929838027,-500.0,0.00015784,2]
[404193535,1769929838037,-504.09933742,0.00015784,2]
[404193536,1769929838048,-500.0,0.00015784,2]
[404193537,1769929838057,-493.93536393,0.00015784,2]
[404193538,1769929838067,-500.0,0.00015784,2]
[404193539,1769929838076,-493.93536393,0.00015784,2]
[404193540,1769929838085,-500.0,0.00015784,2]
[404193541,1769929838095,-493.93536393,0.00015784,2]
[404193542,1769929838104,-500.0,0.00015784,2]
[404193543,1769929838114,-493.93536393,0.00015784,2]
[404193544,1769929838125,-500.0,0.00015784,2]
[404193545,1769929838145,-493.93536393,0.00015784,2]
[404193546,1769929838160,-15508.60785437,0.00015785,2]
[404193547,1769929838176,-1697.85569321,0.00015785,2]
[404193549,1769929839936,-3554.411,0.00015785,2]
[404193550,1769929840112,-970.58486981,0.00015785,2]
[404193551,1769929840282,-27550.0,0.00015785,2]
[404193552,1769929840399,-235070.44298936,0.00015785,2]
[404193576,1769929844736,-282.4024,0.00015785,2]
[404193577,1769929846083,-1630.42757585,0.00015785,2]
[404193578,1769929846095,-2383.8368395,0.00015785,2]
[404193579,1769929866593,500.0,0.00043551,120]
[404193580,1769929867725,500.0,0.00043551,120]
[404193581,1769929868347,500.0,0.00043551,120]
[404193582,1769929868984,500.0,0.00043551,120]
[404193583,1769929869148,209.40437684,0.00043551,120]
[404193584,1769929869214,520.0,0.00043551,120]
[404193585,1769929869547,578.20924308,0.00043551,120]
[404193586,1769929869658,854.2589148,0.00043551,120]
[404193587,1769929869742,500.0,0.00043551,120]
[404193588,1769929869844,174.61919141,0.00043551,120]
[404193589,1769929870222,500.0,0.00043551,120]
[404193590,1769929870843,500.0,0.00043551,120]
[404193591,1769929871480,500.0,0.00043551,120]
[404193592,1769929871821,151.0,0.00043551,120]
[404193593,1769929872117,500.0,0.00043551,120]
[404193594,1769929872451,156.587,0.00043551,120]
[404193595,1769929872921,500.0,0.00043551,120]
[404193596,1769929873088,162.380719,0.00043551,120]
[404193597,1769929873540,500.0,0.00043551,120]
[404193598,1769929873607,160.0,0.00043551,120]
[404193599,1769929873757,162.380719,0.00043551,120]
[404193600,1769929874181,500.0,0.00043551,120]
[404193601,1769929874821,500.0,0.00043551,120]
[404193602,1769929874889,500.0,0.00043551,120]
[404193603,1769929875484,500.0,0.00043551,120]
[404193604,1769929875556,500.0,0.00043551,120]
[404193605,1769929875626,500.0,0.00043551,120]
[404193606,1769929876140,500.0,0.00043551,120]
[404193607,1769929876218,500.0,0.00043551,120]
[404193608,1769929876287,500.0,0.00043551,120]
[404193609,1769929876606,500.0,0.00043551,120]
[404193610,1769929876811,500.0,0.00043551,120]
[404193611,1769929876884,500.0,0.00043551,120]
[404193612,1769929876956,500.0,0.00043551,120]
[404193613,1769929877431,500.0,0.00043551,120]
[404193614,1769929877501,500.0,0.00043551,120]
[404193615,1769929877571,500.0,0.00043551,120]
[404193616,1769929877638,500.0,0.00043551,120]
[404193617,1769929878111,500.0,0.00043551,120]
[404193618,1769929878176,500.0,0.00043551,120]
[404193619,1769929878244,500.0,0.00043551,120]
[404193620,1769929878742,500.0,0.00043551,120]
[404193621,1769929878812,500.0,0.00043551,120]
[404193622,1769929878882,500.0,0.00043551,120]
[404193623,1769929879373,500.0,0.00043551,120]
[404193624,1769929879442,500.0,0.00043551,120]
[404193625,1769929880061,500.0,0.00043551,120]
[404193626,1769929880130,500.0,0.00043551,120]
[404193627,1769929880736,500.0,0.00043551,120]
[404193628,1769929880802,500.0,0.00043551,120]
[404193629,1769929881411,500.0,0.00043551,120]
[404193630,1769929881996,500.0,0.00043551,120]
[404193631,1769929882093,500.0,0.00043551,120]
[404193632,1769929883188,500.0,0.00043551,120]
[404193633,1769929883832,500.0,0.00043551,120]
[404193634,1769929898014,1646.257,0.0001547,2]
[404193635,1769929898131,172.363,0.0001547,2]
[404193636,1769929925452,151.0,0.00043551,120]
[404193637,1769929925529,187.78006524,0.00043551,120]
[404193638,1769929926923,151.0,0.00043551,120]
[404193639,1769929928677,201.12765535,0.00043551,120]
[404193640,1769929929989,322.6107,0.00043551,120]
[404193641,1769929931707,885.86649465,0.00043551,120]
[404193642,1769929934485,151.0,0.00043551,120]
[404193643,1769929935124,156.587,0.00043551,120]
[404193644,1769929935774,162.380719,0.00043551,120]
[404193645,1769929939038,168.3888056,0.00043551,120]
[404193646,1769929939405,250.0,0.00043551,120]
[404193647,1769929943178,151.0,0.00043551,120]
[404193648,1769929943333,174.61919141,0.00043551,120]
[404193649,1769929943828,156.587,0.00043551,120]
[404193650,1769929943986,181.08010149,0.00043551,120]
[404193651,1769929944482,156.587,0.00043551,120]
[404193652,1769929944629,187.78006525,0.00043551,120]
[404193653,1769929945285,194.72792766,0.00043551,120]
[404193654,1769929945943,201.93286099,0.00043551,120]
[404193655,1769929946598,209.40437684,0.00043551,120]
[404193656,1769929947236,217.15233878,0.00043551,120]
[404193657,1769929947879,217.15233878,0.00043551,120]
[404193658,1769930237435,49864.18,0.00043551,120]
[404193659,1769930377520,2668.33,0.00015387,2]
[404193660,1769930401448,1000.0,0.0004355,30]
[404193661,1769930402133,1000.0,0.0004355,30]
[404193662,1769930402801,1000.0,0.0004355,30]
[404193663,1769930403378,1000.0,0.0004355,30]
[404193664,1769930404169,1000.0,0.0004355,30]
[404193665,1769930404609,1000.0,0.0004355,30]
[404193666,1769930405263,1000.0,0.0004355,30]
[404193667,1769930405742,1000.0,0.0004355,30]
[404193668,1769930406288,1000.0,0.0004355,30]
[404193669,1769930406870,1000.0,0.0004355,30]
[404193670,1769930407408,1000.0,0.0004355,30]
[404193671,1769930407957,1000.0,0.0004355,30]
[404193672,1769930408517,1000.0,0.0004355,30]
[404193673,1769930409231,1000.0,0.0004355,30]
[404193674,1769930409794,1000.0,0.0004355,30]
[404193675,1769930410422,1000.0,0.0004355,30]
[404193676,1769930411011,1000.0,0.0004355,30]
[404193677,1769930411607,1000.0,0.0004355,30]
[404193678,1769930412312,1000.0,0.0004355,30]
[404193679,1769930412984,1000.0,0.0004355,30]
[404193680,1769930413541,1000.0,0.0004355,30]
[404193681,1769930414093,1000.0,0.0004355,30]
[404193682,1769930414656,1000.0,0.0004355,30]
[404193683,1769930415200,1000.0,0.0004355,30]
[404193684,1769930415762,1000.0,0.0004355,30]
[404193685,1769930416367,1000.0,0.0004355,30]
[404193686,1769930416950,1010.49714559,0.0004355,30]
[404193687,1769930484253,500.0,0.00015473,2]
[404193688,1769930485028,150.0,0.00015473,2]
[404193689,1769930502997,1000.0,0.00014765,2]
[404193690,1769930556746,500.0,0.00015473,2]
[404193691,1769930557372,203.06487634,0.00015473,2]
[404193692,1769930557433,150.0,0.00015473,2]
[404193693,1769930557464,150.0,0.00015473,2]
[404193694,1769930637873,153.33580463,0.00015484,2]
[404193695,1769930653127,382.88,0.00015155,2]
[404193696,1769930669188,1471.03563423,0.00015484,2]
[404193697,1769930708169,1500.0,0.00015162,2]
[404193698,1769930726129,250.0,0.00015,2]
[404193699,1769930734215,288.7,0.0004355,120]
[404193700,1769930745142,9019.4136848,0.0001519,2]
[404193724,1769931031992,-2542.81382997,0.00014611,2]
[404193727,1769931032004,-677.36324147,0.00014611,2]
[404193730,1769931032016,-6460.90292856,0.00014611,2]
[404193732,1769931032025,-1385.5,0.00014631,2]
[404193733,1769931032035,-1465.58,0.00014641,2]
[404193734,1769931032044,-200.0,0.00014674,2]
[404193735,1769931032054,-1200.0,0.00014999,2]
[404193736,1769931032063,-12288.72391151,0.00015,2]
[404193737,1769931032133,940.47110405,0.0004355,120]
[404193738,1769931032145,-1210.11489401,0.00015,2]
[404193739,1769931032157,-854.31250193,0.00015,2]
[404193740,1769931032168,-646.84869255,0.00015,2]
[404193741,1769931032179,-7.09942837,0.00015177,2]
[404193742,1769931032191,-157.39057163,0.00015177,2]
[404193743,1769931032201,-4585.24184536,0.0001519,2]
[404193744,1769931032213,-539.95972738,0.0001519,2]
[404193745,1769931032223,-289.88510599,0.0001519,2]
[404193746,1769931032240,-970.99963647,0.0001519,2]
[404193747,1769931032249,-300.0,0.00015408,2]
[404193748,1769931032258,-150.0,0.00015409,2]
[404193749,1769931032268,-150.0,0.00015409,2]
[404193750,1769931032278,-150.6792369,0.00015409,2]
[404193751,1769931032288,-150.20721944,0.00015409,2]
[404193752,1769931032298,-150.0,0.00015409,2]
[404193753,1769931032307,-150.0,0.00015409,2]
[404193755,1769931032317,-150.0,0.00015409,2]
[404193756,1769931032328,-969.0,0.00015409,2]
[404193758,1769931032337,-150.0,0.00015409,2]
[404193760,1769931032346,-150.0,0.00015409,2]
[404193761,1769931032357,-271.54100167,0.00015409,2]
[404193762,1769931032367,-150.0,0.00015409,2]
[404193763,1769931032376,-150.0,0.00015409,2]
[404193764,1769931032386,-150.0,0.00015409,2]
[404193765,1769931032395,-235.66700122,0.00015464,2]
[404193766,1769931032405,-150.0,0.00015464,2]
[404193767,1769931032415,-150.0,0.00015464,2]
[404193768,1769931032425,-969.0,0.00015464,2]
[404193769,1769931032438,-150.0,0.00015464,2]
[404193770,1769931032447,-150.0,0.00015464,2]
[404193771,1769931032456,-2941.2821,0.00015483,2]
[404193772,1769931032465,-2932.62636646,0.00015484,2]
[404193773,1769931032474,-153.33580463,0.00015484,2]
[404193774,1769931032483,-954.9233177,0.00015484,2]
[404193775,1769931032493,-969.0,0.00015519,2]
[404193776,1769931032503,-200.0,0.00015519,2]
[404193777,1769931032512,-500.0,0.00015528,2]
[404193778,1769931032522,-250.0,0.00015528,2]
[404193779,1769931032532,-969.0,0.00015573,2]
[404193780,1769931032542,-500.0,0.00015582,2]
[404193781,1769931032552,-342.60898218,0.00015582,2]
[404193782,1769931032561,-500.0,0.00015582,2]
[404193783,1769931032572,-500.0,0.00015582,2]
[404193784,1769931032581,-588.82373659,0.00015582,2]
[404193785,1769931032591,-500.0,0.00015582,2]
[404193786,1769931032602,-500.0,0.00015582,2]
[404193787,1769931032612,-500.0,0.00015582,2]
[404193788,1769931032622,-500.0,0.00015582,2]
[404193789,1769931032632,-500.0,0.00015582,2]
[404193790,1769931032641,-500.0,0.00015582,2]
[404193791,1769931032650,-500.0,0.00015582,2]
[404193792,1769931032659,-500.0,0.00015582,2]
[404193793,1769931032669,-500.0,0.00015582,2]
[404193794,1769931032678,-500.0,0.00015582,2]
[404193795,1769931032688,-500.0,0.00015582,2]
[404193796,1769931032698,-500.0,0.00015582,2]
[404193797,1769931032708,-500.0,0.00015582,2]
[404193798,1769931032717,-500.0,0.00015582,2]
[404193799,1769931032728,-500.0,0.00015582,2]
[404193800,1769931032739,-500.0,0.00015582,2]
[404193801,1769931032749,-500.0,0.00015582,2]
[404193802,1769931032758,-500.0,0.00015582,2]
[404193803,1769931032768,-500.0,0.00015582,2]
[404193804,1769931032778,-194.87551331,0.00015582,2]
[404193805,1769931032787,-500.0,0.00015582,2]
[404193806,1769931032798,-500.0,0.00015582,2]
[404193807,1769931032818,-500.0,0.00015582,2]
[404193808,1769931032828,-500.0,0.00015582,2]
[404193809,1769931032838,-300.0,0.00015582,2]
[404193810,1769931032848,-500.0,0.00015583,2]
[404193811,1769931032858,-73746.2530326,0.00015583,2]
[404193812,1769931036563,945.54,0.00012435,2]
[404193813,1769931038189,-849.72041502,0.00015583,2]
[404193814,1769931038203,-828.53385573,0.00015583,2]
[404193815,1769931038215,-1103.16022683,0.00015583,2]
[404193816,1769931038227,-1128.25873982,0.00015583,2]
[404193817,1769931038239,-1523.42760257,0.00015583,2]
[404193818,1769931038251,-159369.05247678,0.00015583,2]
[404193819,1769931038263,-386.1649995,0.00015583,2]
[404193820,1769931038314,-2047.57159741,0.00015583,2]
[404193821,1769931038328,-614.0997362,0.00015583,2]
[404193827,1769931040132,-57084.34042029,0.00015583,2]
[404193828,1769931040209,-843.40981153,0.00015583,2]
[404193829,1769931040222,-1729.9999,0.00015583,2]
[404193830,1769931040233,-390.86,0.00015583,2]
[404193831,1769931040389,-395.92311807,0.00015583,2]
[404193832,1769931040402,-315.32000001,0.00015583,2]
[404193833,1769931040641,-400.88155885,0.00015583,2]
[404193849,1769931044539,500.0,0.0004355,120]
[404193850,1769931044784,500.0,0.0004355,120]
[404193851,1769931045016,177.38337083,0.0004355,120]
[404193852,1769931045261,-2043.20701054,0.00015583,2]
[404193853,1769931046284,-603.41291798,0.00015583,2]
[404193854,1769931046296,-1786.9332,0.00015583,2]
[404193855,1769931046344,-3227.60288311,0.00015583,2]
[404193856,1769931046520,-5414.72922673,0.00015583,2]
[404193893,1769931050358,191.55930549,0.0004355,120]
[404193895,1769931070670,151.0,0.0004355,120]
[404193896,1769931071428,156.587,0.0004355,120]
[404193897,1769931072046,500.0,0.0004355,120]
[404193898,1769931072119,162.380719,0.0004355,120]
[404193899,1769931072183,230.83873315,0.0004355,120]
[404193900,1769931072413,520.0,0.0004355,120]
[404193901,1769931072658,500.0,0.0004355,120]
[404193902,1769931072725,168.3888056,0.0004355,120]
[404193903,1769931073339,500.0,0.0004355,120]
[404193904,1769931073428,174.61919141,0.0004355,120]
[404193905,1769931073965,500.0,0.0004355,120]
[404193906,1769931074038,181.08010149,0.0004355,120]
[404193907,1769931074668,187.78006525,0.0004355,120]
[404193908,1769931074735,500.0,0.0004355,120]
[404193909,1769931075389,194.72792766,0.0004355,120]
[404193910,1769931076055,194.72792766,0.0004355,120]
[404193911,1769931079693,854.2589148,0.0004355,120]
[404193912,1769931082027,322.6107,0.0004355,120]
[404193916,1769931129013,201.12765535,0.0004355,120]
[404193918,1769931131350,151.0,0.0004355,120]
[404193919,1769931131988,156.587,0.0004355,120]
[404193920,1769931132654,162.380719,0.0004355,120]
[404193921,1769931133310,168.3888056,0.0004355,120]
[404193922,1769931133962,174.61919141,0.0004355,120]
[404193923,1769931134625,181.08010149,0.0004355,120]
[404193924,1769931135275,181.08010149,0.0004355,120]
[404193925,1769931137799,885.86649465,0.0004355,120]
[404193933,1769931546988,151.0,0.00043561,120]
[404193934,1769931547370,274.654369,0.00043561,120]
[404193935,1769931547448,151.0,0.00043561,120]
[404193936,1769931547793,151.0,0.00043561,120]
[404193937,1769931548160,151.0,0.00043561,120]
[404193938,1769931548485,151.0,0.00043561,120]
[404193939,1769931549132,151.0,0.00043561,120]
[404193940,1769931549441,151.0,0.00043561,120]
[404193941,1769931549765,151.0,0.00043561,120]
[404193942,1769931550059,175.778083,0.00043561,120]
[404193943,1769931684823,298.0,0.00043561,120]
[404193944,1769931698722,151.0,0.00043561,120]
[404193945,1769931699360,151.0,0.00043561,120]
[404193946,1769931699780,151.0,0.00043561,120]
[404193947,1769931700150,151.0,0.00043561,120]
[404193948,1769931700505,151.0,0.00043561,120]
[404193949,1769931700901,151.0,0.00043561,120]
[404193950,1769931701385,151.0,0.00043561,120]
[404193951,1769931701895,151.0,0.00043561,120]
[404193952,1769931702197,151.0,0.00043561,120]
[404193953,1769931702580,169.76036,0.00043561,120]
[404193954,1769931751033,151.0,0.00043561,120]
[404193955,1769931751525,151.0,0.00043561,120]
[404193956,1769931751973,151.0,0.00043561,120]
[404193957,1769931752496,151.0,0.00043561,120]
[404193958,1769931752875,151.0,0.00043561,120]
[404193959,1769931753439,151.0,0.00043561,120]
[404193960,1769931754006,151.0,0.00043561,120]
[404193961,1769931754360,151.0,0.00043561,120]
[404193962,1769931754895,226.86096,0.00043561,120]
[404193968,1769932020498,700.0,0.000146,5]
[404193969,1769932022616,1400.0,0.000147,5]
[404193970,1769932024714,2200.0,0.000148,5]
[404193971,1769932026806,2900.0,0.000149,5]
[404193972,1769932037838,55000.0,0.00043561,120]
[404193973,1769932072353,2000.0,0.00043561,120]
[404193974,1769932227633,200.0,0.00043561,30]
[404193975,1769932228357,207.4,0.00043561,30]
[404193976,1769932229064,215.0738,0.00043561,30]
[404193977,1769932229700,223.0315306,0.00043561,30]
[404193978,1769932230844,223.0315306,0.00043561,30]
[404193990,1769932232181,-150.0,0.00013784,2]
[404193992,1769932232191,-241.82,0.00013801,2]
[404193993,1769932232200,-285.49,0.00014248,2]
[404193995,1769932232210,-250.0,0.0001427,2]
[404193997,1769932232219,-285.49,0.00014293,2]
[404193998,1769932232228,-285.49,0.00014338,2]
[404193999,1769932232237,-285.49,0.00014384,2]
[404194000,1769932232247,-285.49,0.00014429,2]
[404194001,1769932232256,-285.49,0.00014475,2]
[404194002,1769932232265,-285.49,0.0001452,2]
[404194003,1769932232274,-285.49,0.00014566,2]
[404194004,1769932232283,-500.0,0.00014606,2]
[404194005,1769932232292,-285.49,0.00014611,2]
[404194006,1769932232302,-285.49,0.00014657,2]
[404194007,1769932232311,-286.9578,0.00014699,2]
[404194008,1769932232320,-1200.0,0.00014699,2]